bitfinex-derivatives/quotes_ETHF0:USTF0_20250730
["timestamp","ask_amount","ask_price","bid_price","bid_amount"]
[1753908607243,24.71403192,3768.9,3768.8,9.39e-06]
[1753908607440,21.45483192,3768.9,3768.8,9.39e-06]
[1753908607944,26.45483192,3768.9,3768.8,9.39e-06]
[1753908610448,8.07183192,3768.9,3768.8,9.39e-06]
[1753908610642,21.45483192,3768.9,3768.8,5.99680939]
[1753908610843,20.7073,3768.9,3768.8,5.99680939]
[1753908611037,20.7073,3768.9,3768.8,9.39e-06]
[1753908611246,3.44632,3768.2,3768.1,5.9968]
[1753908611749,18.382,3768.2,3768.1,5.9968]
[1753908612944,0.53091,3768.3,3768.2,5.9968]
[1753908613151,18.91291,3768.3,3768.2,5.9968]
[1753908614146,0.53088,3768.5,3768.4,2.0911]
[1753908614349,18.91188,3768.5,3768.4,5.9968]
[1753908615144,0.53088,3768.5,3768.4,5.9968]
[1753908615351,18.381,3768.5,3768.4,5.9968]
[1753908615656,5.66889,3769.1,3769.0,2.3701]
[1753908615952,24.04989,3769.1,3769.0,5.9968]
[1753908616143,25.03499,3769.1,3769.0,5.9968]
[1753908616542,27.13379,3769.1,3769.0,5.9968]
[1753908617449,25.03499,3769.1,3769.0,5.9968]
[1753908617650,23.87499,3769.1,3769.0,5.9968]
[1753908618048,22.88889,3769.1,3769.0,5.9968]
[1753908618441,22.11859,3769.1,3769.0,5.9968]
[1753908619049,27.13279,3769.1,3769.0,5.9968]
[1753908622248,25.03399,3769.1,3769.0,5.9968]
[1753908622557,23.87399,3769.1,3769.0,5.9968]
[1753908623354,26.56389,3769.1,3769.0,5.9968]
[1753908624357,27.13279,3769.1,3769.0,5.9968]
[1753908625453,2.3243,3768.6,3768.5,3.5381]
[1753908625645,23.92106,3768.6,3768.5,2.3701]
[1753908626045,23.92106,3768.6,3768.5,4.8288]
[1753908626450,23.92106,3768.6,3768.5,0.9231]
[1753908626657,24.49036,3768.6,3768.5,0.9231]
[1753908628257,1.30122,3768.2,3768.1,3.2932]
[1753908628464,27.69822,3768.2,3768.1,0.9231]
[1753908630255,27.69822,3768.2,3768.1,1.4932]
[1753908630456,3.73872,3768.2,3768.1,5.8552]
[1753908630854,22.11372,3768.2,3768.1,5.8552]
[1753908631155,27.65242,3768.2,3768.1,1.4932]
[1753908631351,0.53102,3767.5,3767.4,0.8611]
[1753908631552,1.32774,3767.0,3766.6,3.30514257]
[1753908631859,24.79819,3767.0,3766.9,3.8827]
[1753908632455,5.50035,3766.6,3766.5,1.6003]
[1753908632656,24.79825,3766.6,3766.5,2.3499]
[1753908632861,24.79825,3766.6,3766.5,3.8827]
[1753908633057,24.79825,3766.6,3765.8,0.39831645]
[1753908633058,1.46621,3766.1,3766.0,3.8827]
[1753908633459,0.53121,3766.1,3766.0,3.8827]
[1753908633663,18.90621,3766.2,3766.0,2.3499]
[1753908633860,19.1349,3766.2,3766.1,4.7438]
[1753908634057,3.2078,3766.8,3766.7,2.3499]
[1753908634262,21.5848,3766.8,3766.7,5.8451]
[1753908634564,3.9677,3767.2,3767.1,5.8451]
[1753908634761,3.2078,3767.2,3767.1,5.8451]
[1753908635060,21.5838,3767.2,3767.1,6.37617]
[1753908635265,0.53098,3767.8,3767.7,5.8451]
[1753908635455,20.41066746,3767.8,3767.7,5.8451]
[1753908635659,23.10816746,3767.8,3767.7,5.8451]
[1753908636065,22.36438,3767.8,3767.7,5.8451]
[1753908636568,2.80023,3767.5,3767.4,5.8451]
[1753908636861,20.0709,3767.5,3767.4,5.8451]
[1753908637061,18.376,3767.5,3767.4,5.8451]
[1753908638767,20.8984,3767.5,3767.4,5.8451]
[1753908640262,18.376,3767.5,3767.4,5.8451]
[1753908640562,3.2078,3767.9,3767.7,5.8451]
[1753908640859,18.376,3767.8,3767.7,5.8451]
[1753908641066,2.1111,3768.2,3767.8,4.3123]
[1753908641264,21.8334,3768.1,3768.0,4.3123]
[1753908641465,24.2681,3768.1,3768.0,4.3123]
[1753908641665,24.2681,3768.1,3768.0,5.8451]
[1753908643074,2.80022,3767.5,3767.4,0.6179]
[1753908643271,24.79812,3767.5,3767.4,3.9942]
[1753908643459,24.2671,3767.5,3767.4,4.7438]
[1753908643664,24.2671,3767.5,3767.4,5.8451]
[1753908644270,23.3442,3767.5,3767.4,5.8451]
[1753908645765,2.80026,3767.2,3767.1,4.984]
[1753908645970,24.79816,3767.2,3767.1,5.8451]
[1753908646171,24.2671,3767.2,3767.1,5.8451]
[1753908646767,24.2671,3767.2,3766.8,0.6179]
[1753908646768,2.78821,3766.9,3766.8,0.6179]
[1753908646965,20.6432,3766.9,3766.8,5.8451]
[1753908647165,21.5661,3766.9,3766.8,5.8451]
[1753908647368,24.2661,3766.9,3766.8,5.8451]
[1753908648469,22.6861,3766.9,3766.8,2.3499]
[1753908648771,24.7972,3766.9,3766.8,5.8451]
[1753908649771,21.1743,3766.9,3766.8,5.8451]
[1753908650069,22.3625,3766.9,3766.8,5.8451]
[1753908650265,24.7972,3766.9,3766.8,5.8451]
[1753908650463,0.53116,3766.5,3766.2,3.2078]
[1753908650669,21.8324,3766.5,3766.4,5.8451]
[1753908650976,24.2671,3766.5,3766.4,5.8451]
[1753908651767,4.49877,3767.1,3767.0,2.3499]
[1753908651976,25.57127,3767.1,3767.0,5.8451]
[1753908652173,27.08307,3767.1,3767.0,5.8451]
[1753908652379,9.63097,3767.1,3767.0,5.8451]
[1753908652674,28.00597,3767.1,3767.0,4.7438]
[1753908653275,28.00597,3767.1,3767.0,5.8451]
[1753908654869,25.57127,3767.1,3767.0,5.8451]
[1753908655069,6.00807,3767.1,3767.0,5.8451]
[1753908655265,24.38307,3767.1,3767.0,5.8451]
[1753908655470,25.57127,3767.1,3767.0,5.8451]
[1753908655670,27.08307,3767.1,3767.0,5.8451]
[1753908656171,28.00597,3767.1,3767.0,5.8451]
[1753908656373,28.00597,3767.1,3766.2,3.2078]
[1753908656374,4.9692,3766.5,3766.4,5.8451]
[1753908656674,24.2671,3766.5,3766.4,5.8451]
[1753908659376,2.86843,3766.0,3765.9,2.3655]
[1753908659574,23.84893,3766.0,3765.9,5.8212]
[1753908660378,21.8805,3766.0,3765.9,5.8212]
[1753908660680,18.374,3766.0,3765.9,5.8212]
[1753908661275,20.7112,3766.0,3765.9,5.8212]
[1753908661476,23.3177,3766.0,3765.9,5.8212]
[1753908662773,21.8805,3766.0,3765.9,1.5089]
[1753908662980,24.2084,3766.0,3765.9,5.8212]
[1753908663377,24.2084,3766.0,3765.9,1.0296]
[1753908663681,6.36564,3765.9,3765.8,6.21951645]
[1753908664575,4.03774,3765.9,3765.8,6.21951645]
[1753908666479,6.36564,3765.9,3765.8,6.21951645]
[1753908666878,4.03774,3765.9,3765.8,6.21951645]
[1753908667180,2.86844,3765.9,3765.8,6.21951645]
[1753908667371,5.47494,3765.9,3765.8,6.21951645]
[1753908667775,4.03774,3765.9,3765.8,6.21951645]
[1753908668380,21.24144,3765.9,3765.8,6.21951645]
[1753908669187,24.73864,3765.9,3765.8,6.21951645]
[1753908669379,24.73864,3765.9,3765.8,0.39831645]
[1753908669380,22.67864,3765.9,3765.8,0.39831645]
[1753908669582,24.73864,3765.9,3765.8,0.39831645]
[1753908670280,0.53131,3765.4,3765.0,0.53136]
[1753908670584,0.53135,3765.1,3765.0,5.8212]
[1753908670885,0.53135,3765.1,3765.0,4.7213]
[1753908671081,4.30575,3765.1,3765.0,2.3655]
[1753908671382,24.73875,3765.1,3765.0,5.8212]
[1753908671781,21.24155,3765.1,3765.0,5.8212]
[1753908672182,18.373,3765.1,3765.0,5.8212]
[1753908672392,0.53135,3765.2,3765.1,2.89685]
[1753908672679,18.90435,3765.2,3765.1,5.8212]
[1753908672874,24.73875,3765.2,3765.1,5.8212]
[1753908675080,24.73875,3765.2,3765.1,4.7213]
[1753908675691,24.73875,3765.2,3765.1,3.2826]
[1753908675890,24.73875,3765.2,3765.1,2.253]
[1753908676087,6.36578,3764.9,3764.8,2.253]
[1753908676284,24.73978,3764.9,3764.8,2.253]
[1753908676589,24.73978,3764.9,3764.8,3.2826]
[1753908676787,24.73978,3764.9,3764.5,5.8212]
[1753908676788,2.86862,3764.6,3764.5,5.8212]
[1753908676989,24.73982,3764.6,3764.5,5.8212]
[1753908677179,21.8805,3764.6,3764.4,3.73924]
[1753908677383,24.2084,3764.6,3764.5,5.8212]
[1753908677583,18.374,3764.6,3764.5,5.8212]
[1753908678189,24.2084,3764.6,3764.5,1.6214]
[1753908678490,2.3372,3764.4,3764.3,2.5385]
[1753908678688,24.2074,3764.4,3764.3,3.9772]
[1753908678891,24.2074,3764.4,3764.3,4.7213]
[1753908679092,24.2074,3764.4,3764.3,5.8212]
[1753908679985,23.3167,3764.4,3764.0,3.7393]
[1753908680187,23.84815,3764.4,3764.3,5.8212]
[1753908680386,2.86869,3764.2,3764.1,5.8212]
[1753908680581,24.73989,3764.2,3764.1,5.8212]
[1753908680782,18.374,3764.2,3764.1,4.9041]
[1753908681093,18.374,3764.2,3764.1,5.8212]
[1753908681294,19.7284,3764.2,3764.1,5.8212]
[1753908681490,23.3177,3764.2,3764.1,5.8212]
[1753908682400,4.9437,3764.2,3764.1,5.8212]
[1753908682596,2.3372,3764.2,3764.1,5.8212]
[1753908682992,1.32854,3764.7,3764.4,3.4557]
[1753908682993,2.06,3764.7,3764.4,3.4557]
[1753908683297,5.47511,3764.7,3764.6,5.8212]
[1753908683496,23.84911,3764.7,3764.6,5.8212]
[1753908684401,4.03791,3764.7,3764.6,5.8212]
[1753908684591,22.41191,3764.7,3764.6,5.8212]
[1753908684796,24.73981,3764.7,3764.6,5.8212]
[1753908685693,23.84911,3764.7,3764.6,5.8212]
[1753908686493,0.7883,3764.7,3764.6,4.7213]
[1753908686697,3.2078,3765.2,3765.0,2.3655]
[1753908686999,0.8907,3766.1,3765.5,5.8212]
[1753908687194,1.88566,3765.8,3765.7,1.6214]
[1753908687401,3.6823,3765.1,3765.0,5.0771]
[1753908687600,24.2084,3765.1,3765.0,5.0771]
[1753908687902,24.2084,3765.1,3765.0,5.8212]
[1753908689104,5.8344,3765.1,3765.0,5.8212]
[1753908689406,19.7148,3765.1,3765.0,5.8024]
[1753908692698,18.374,3765.1,3765.0,5.8024]
[1753908692997,1.66653,3765.3,3765.0,6.33376]
[1753908693202,18.372,3765.2,3765.1,0.775]
[1753908693405,3.2078,3765.4,3765.3,4.3073]
[1753908693706,21.5798,3765.4,3765.3,5.7944]
[1753908694306,23.9146,3765.4,3765.3,5.7944]
[1753908694504,26.5279,3765.4,3765.3,5.7944]
[1753908694697,23.9146,3765.4,3765.3,5.7944]
[1753908694903,22.9206,3765.4,3765.3,5.7944]
[1753908695201,1.66645,3765.9,3765.8,2.2978]
[1753908695406,0.53125,3765.9,3765.8,5.7944]
[1753908695701,22.37222,3766.1,3766.0,4.3073]
[1753908695906,21.23702,3766.1,3766.0,5.7944]
[1753908696307,22.37222,3766.1,3766.0,5.7944]
[1753908697007,0.53119,3766.3,3766.2,5.7944]
[1753908697305,4.00115,3766.5,3766.4,5.7944]
[1753908697506,25.62554437,3766.5,3766.4,3.1573]
[1753908698008,25.45342368,3766.5,3766.4,3.1573]
[1753908698505,6.3362,3766.2,3766.1,5.7944]
[1753908698700,25.45347368,3766.2,3766.1,4.6444]
[1753908698903,25.45347368,3766.2,3766.1,5.7944]
[1753908699203,0.994,3765.8,3765.7,2.2978]
[1753908699403,5.805,3765.8,3765.7,2.2978]
[1753908699610,5.805,3765.8,3765.7,2.82907]
[1753908699611,2.3348,3765.8,3765.7,2.82907]
[1753908699905,18.369,3765.9,3765.7,6.32567]
[1753908700108,18.369,3765.9,3765.8,5.7944]
[1753908700604,23.3171,3765.9,3765.8,5.7944]
[1753908701801,18.369,3765.9,3765.8,5.7944]
[1753908702208,0.5312,3766.2,3766.1,2.2978]
[1753908702509,20.238,3766.2,3766.1,5.7944]
[1753908702708,22.3672,3766.2,3766.1,5.7944]
[1753908702900,23.8453,3766.2,3766.1,5.7944]
[1753908703105,24.7022,3766.2,3766.1,5.7944]
[1753908704213,0.53119,3766.3,3766.2,4.0804]
[1753908704404,18.89619,3766.3,3766.2,5.7944]
[1753908705310,6.07373,3766.7,3766.6,5.7944]
[1753908705509,26.77273,3766.7,3766.6,0.5838]
[1753908705708,2.86595,3766.5,3766.4,3.4478]
[1753908705907,6.33615,3766.5,3766.4,4.6444]
[1753908706112,5.805,3766.1,3766.0,5.7944]
[1753908709016,6.33621,3766.1,3766.0,2.4261]
[1753908709318,3.00725,3765.8,3765.7,5.7944]
[1753908712706,5.47935,3765.8,3765.7,5.7944]
[1753908713617,1.3408,3765.8,3765.7,5.7944]
[1753908713816,0.53124,3765.9,3765.8,2.82905]
[1753908714016,0.53124,3765.9,3765.8,6.32565]
[1753908714218,0.53124,3765.9,3765.8,5.7944]
[1753908714418,3.00724,3765.9,3765.8,5.7944]
[1753908715218,0.53122,3766.1,3765.8,5.7944]
[1753908715423,18.89022,3766.1,3766.0,2.2978]
[1753908715614,18.89022,3766.1,3766.0,5.7944]
[1753908715822,18.359,3766.1,3766.0,5.7944]
[1753908716018,21.829,3766.1,3766.0,5.7944]
[1753908716218,23.3071,3766.1,3766.0,5.7944]
[1753908716413,24.164,3766.1,3766.0,5.7944]
[1753908717725,5.805,3765.8,3765.7,6.32566]
[1753908717919,6.33625,3765.8,3765.7,5.7944]
[1753908718423,6.33625,3765.8,3765.7,1.5228]
[1753908718814,24.69325,3765.8,3765.7,1.5228]
[1753908719223,24.69325,3765.8,3765.7,5.7078]
[1753908721425,18.356,3765.8,3765.7,5.7078]
[1753908721619,0.53125,3765.9,3765.8,3.41]
[1753908721924,18.88723,3766.0,3765.9,1.23744]
[1753908722120,20.21863,3766.0,3765.9,5.6965]
[1753908722426,23.85203,3766.0,3765.9,5.6965]
[1753908722721,0.7491,3766.2,3766.1,1.8337]
[1753908722932,5.30229,3766.3,3766.2,5.6965]
[1753908723120,24.72199,3766.3,3766.2,2.4536]
[1753908723322,2.3951,3765.7,3765.6,3.552]
[1753908723623,5.8348,3765.7,3765.6,4.2582]
[1753908723926,5.8348,3765.7,3765.6,5.6965]
[1753908724327,3.2078,3766.0,3765.6,5.6965]
[1753908724328,1.3314,3765.9,3765.8,1.83374]
[1753908724625,0.53121,3766.2,3766.1,0.53121]
[1753908724828,19.6864,3766.2,3766.1,2.81771]
[1753908725021,19.6864,3766.2,3766.1,6.22771]
[1753908725221,2.3951,3766.2,3766.1,6.22771]
[1753908725425,3.4137,3766.2,3766.1,6.22771]
[1753908725627,4.9648,3766.2,3766.1,6.22771]
[1753908729728,5.0206,3766.8,3766.7,5.6965]
[1753908729927,3.2078,3766.8,3766.7,5.6965]
[1753908730930,18.353,3767.0,3766.8,0.53111]
[1753908731135,1.8128,3767.2,3767.1,1.6902]
[1753908731432,2.2988,3766.9,3766.8,0.8733]
[1753908731634,6.3659,3766.9,3766.8,1.4696]
[1753908731832,7.11608661,3766.9,3766.8,1.4696]
[1753908732037,5.8348,3766.4,3766.3,3.8919]
[1753908732231,5.8348,3766.4,3766.3,0.984]
[1753908732428,6.36601,3766.1,3766.0,5.6965]
[1753908733332,5.8348,3766.1,3766.0,5.6965]
[1753908733931,3.73896,3766.5,3765.5,4.53602]
[1753908734135,3.9569,3766.5,3766.4,5.6965]
[1753908734330,9.0426,3766.5,3766.4,5.6965]
[1753908735133,3.4137,3766.5,3766.4,5.6965]
[1753908735435,2.35,3766.5,3766.4,5.6965]
[1753908736230,3.4137,3766.5,3766.4,5.6965]
[1753908736430,4.9648,3766.5,3766.4,5.6965]
[1753908737033,5.8348,3766.5,3766.4,5.6965]
[1753908737538,4.9648,3766.5,3766.4,3.1598]
[1753908737737,2.35,3766.5,3766.4,2.4536]
[1753908737941,2.35,3766.5,3766.4,4.5981]
[1753908738235,5.8348,3766.5,3766.4,4.5981]
[1753908738441,5.8348,3766.5,3766.4,5.6965]
[1753908739532,4.9648,3766.5,3766.4,5.6965]
[1753908741339,5.8348,3766.5,3766.4,5.6965]
[1753908742241,4.9648,3766.5,3766.4,5.6965]
[1753908744752,0.7491,3766.5,3766.4,5.6965]
[1753908744949,3.4137,3767.2,3767.1,6.22757]
[1753908745149,3.4137,3767.2,3767.1,4.5981]
[1753908745349,4.2837,3767.2,3767.1,4.5981]
[1753908745651,1.3314,3767.2,3767.1,5.6965]
[1753908746142,0.7491,3767.2,3767.1,5.6965]
[1753908747750,1.3314,3767.2,3767.1,5.6965]
[1753908748054,2.3951,3767.2,3767.1,5.6965]
[1753908749344,1.1295,3767.5,3767.4,2.6127]
[1753908749549,2.4838,3767.6,3767.5,5.07771]
[1753908749747,3.4752,3767.6,3767.5,6.12371]
[1753908750249,0.38,3767.7,3767.6,5.5927]
[1753908750446,0.38,3767.7,3767.6,8.8005]
[1753908750841,5.8799,3768.4,3768.3,5.5927]
[1753908751052,1.3543,3767.8,3767.7,2.2837]
[1753908751253,3.8287,3767.8,3767.7,2.2837]
[1753908751454,3.8287,3767.8,3767.7,2.81468]
[1753908751650,3.8287,3767.8,3767.7,5.27998]
[1753908751951,2.0512,3768.1,3768.0,0.53094]
[1753908752154,6.63520843,3768.1,3768.0,6.12364]
[1753908753155,6.63520843,3768.1,3768.0,5.5927]
[1753908755451,6.63520843,3768.1,3767.9,0.53095]
[1753908755658,5.8799,3768.0,3767.9,1.14375]
[1753908755857,5.8799,3768.0,3767.9,6.12365]
[1753908756157,6.63490091,3768.0,3767.9,6.12365]
[1753908756357,0.75500091,3768.0,3767.9,6.12365]
[1753908756552,1.3543,3768.2,3768.1,2.81462]
[1753908756755,4.2301587,3768.2,3768.1,6.12362]
[1753908757758,5.7131587,3768.2,3768.1,6.12362]
[1753908759058,5.7131587,3768.2,3768.1,5.5927]
[1753908759556,5.7131587,3768.2,3768.0,3.73874]
[1753908759557,6.41083,3768.1,3768.0,1.4565]
[1753908759752,7.1657887,3768.1,3768.0,0.6128]
[1753908760152,6.41083,3768.1,3768.0,0.6128]
[1753908760356,6.41083,3768.1,3768.0,2.8758]
[1753908760857,5.8799,3768.1,3768.0,5.5927]
[1753908762355,5.8799,3768.1,3768.0,4.5467]
[1753908762661,5.8799,3768.1,3768.0,5.5927]
[1753908764760,5.8799,3768.1,3768.0,4.5467]
[1753908765555,5.8799,3768.1,3768.0,5.5927]
[1753908767160,4.9582,3768.1,3768.0,5.5927]
[1753908767361,5.8799,3768.1,3768.0,5.5927]
[1753908768561,5.8799,3768.1,3768.0,1.763]
[1753908768767,6.41087,3767.8,3767.7,0.6128]
[1753908768969,6.4109,3767.6,3767.5,4.5467]
[1753908769464,6.4109,3767.6,3767.5,5.5927]
[1753908771367,6.4109,3767.6,3767.5,4.5467]
[1753908771669,6.41093,3767.4,3767.3,6.0836]
[1753908771868,6.41093,3767.4,3767.3,7.0375]
[1753908772075,6.41093,3767.4,3767.3,8.8005]
[1753908772368,5.8799,3767.4,3767.3,8.8005]
[1753908773173,4.9582,3767.4,3767.3,8.8005]
[1753908773858,3.4752,3767.4,3767.3,8.8005]
[1753908774276,0.53095,3768.0,3767.6,2.263]
[1753908774462,18.85686,3768.6,3768.5,2.2837]
[1753908774665,20.21116,3768.6,3768.5,5.5927]
[1753908774866,20.21116,3768.6,3768.2,3.4564]
[1753908774867,2.8766,3768.3,3768.2,3.4564]
[1753908775073,6.4108,3768.3,3768.2,2.4104]
[1753908775264,0.53093,3768.1,3768.0,2.3732]
[1753908775574,6.41083,3768.1,3768.0,4.5467]
[1753908775774,6.41083,3768.1,3768.0,5.5927]
[1753908776368,6.41083,3768.1,3767.8,0.53096]
[1753908776369,2.87667,3767.8,3767.7,7.3812]
[1753908776572,6.41087,3767.8,3767.7,8.8005]
[1753908776774,6.41087,3767.8,3767.7,5.5927]
[1753908777275,5.8799,3767.8,3767.7,5.5927]
[1753908777471,3.2078,3768.3,3767.9,0.53095]
[1753908777676,5.2813,3768.3,3768.2,5.5927]
[1753908778067,6.4108,3768.3,3768.2,5.5927]
[1753908778977,3.3666,3768.3,3768.2,5.5927]
[1753908779273,4.8372,3768.3,3768.2,5.5927]
[1753908779674,5.737,3768.3,3768.2,5.5927]
[1753908781380,5.737,3768.3,3768.2,4.5467]
[1753908781681,2.1682,3767.8,3767.7,4.6065]
[1753908781982,4.7362,3767.8,3767.7,5.6791]
[1753908782179,3.2656,3767.8,3767.7,5.6791]
[1753908782479,3.2656,3767.8,3767.7,6.21008]
[1753908782881,5.636,3767.8,3767.7,4.1887]
[1753908783082,5.636,3767.8,3767.7,2.3879]
[1753908783684,5.636,3767.8,3767.7,3.8783]
[1753908784080,5.636,3767.8,3767.7,5.6791]
[1753908784484,1.0974,3769.1,3767.8,1.32743]
[1753908784783,1.4673636,3769.4,3769.3,2.2539]
[1753908784978,1.69261876,3769.4,3769.3,0.53076]
[1753908785176,0.9366036,3769.6,3769.3,9.41766]
[1753908785372,1.0974,3769.9,3769.3,9.41766]
[1753908785373,3.2656,3769.9,3769.8,5.6791]
[1753908785574,3.7962,3770.5,3770.4,4.6065]
[1753908785781,7.09583841,3770.5,3770.4,5.6791]
[1753908785977,0.53065,3770.1,3770.0,2.2539]
[1753908786185,4.7362,3770.1,3770.0,4.8169]
[1753908786575,0.38,3770.7,3770.6,2.2539]
[1753908786777,0.9366036,3771.5,3771.4,2.3818]
[1753908786977,0.94377382,3771.5,3771.4,8.8869]
[1753908787685,0.17306599,3771.5,3771.4,8.8869]
[1753908788076,1.42636599,3771.5,3771.4,8.8869]
[1753908788274,4.7362,3771.0,3770.9,4.6065]
[1753908788478,5.26672,3771.0,3770.9,8.8869]
[1753908789182,6.16652,3771.0,3770.9,6.3239]
[1753908789377,5.636,3771.0,3770.9,7.8143]
[1753908789579,0.53044,3771.6,3771.0,2.3526]
[1753908789776,0.8998,3772.1,3771.8,4.6065]
[1753908789978,2.88109,3772.0,3771.9,5.6791]
[1753908790382,2.3507,3772.0,3771.9,5.6791]
[1753908790672,0.53034,3772.3,3771.9,2.2539]
[1753908790876,1.0974,3772.7,3772.4,1.3092]
[1753908791084,3.6388,3772.7,3772.6,5.6791]
[1753908791684,4.7362,3772.7,3772.6,5.6791]
[1753908791879,2.7239,3772.7,3772.6,5.6791]
[1753908792085,5.26647,3772.8,3772.7,5.6791]
[1753908792285,6.16627,3772.8,3772.7,4.6065]
[1753908792586,6.16631,3772.5,3772.4,2.3879]
[1753908792781,0.53029,3772.7,3772.4,5.6791]
[1753908792987,0.53029,3772.7,3772.6,2.2539]
[1753908793188,4.3052,3773.2,3772.6,2.2539]
[1753908793383,0.6922,3772.9,3772.8,4.1534]
[1753908793681,2.6834,3772.6,3772.5,3.0161]
[1753908793879,6.1663,3772.6,3772.5,3.7888]
[1753908794080,6.1663,3772.6,3772.5,6.1414]
[1753908794284,6.1663,3772.6,3772.5,8.8869]
[1753908794486,0.53038,3772.0,3771.9,7.8143]
[1753908794689,5.26658,3772.0,3771.9,5.6791]
[1753908794982,1.0974,3772.7,3772.0,3.4252]
[1753908795185,2.568,3772.7,3772.1,0.8622]
[1753908795380,2.568,3772.7,3771.4,0.23172194]
[1753908795381,0.53038,3772.0,3771.8,0.8622]
[1753908795589,1.2533,3771.5,3771.4,7.3965]
[1753908795786,0.6922,3771.5,3771.4,8.8869]
[1753908796083,0.53043,3771.7,3771.4,5.4617]
[1753908796289,2.88113,3771.7,3771.6,5.6791]
[1753908796990,5.26663,3771.7,3771.6,5.6791]
[1753908797384,6.16643,3771.7,3771.6,5.6791]
[1753908797882,5.26663,3771.7,3771.6,5.6791]
[1753908798786,5.43350095,3771.7,3771.6,5.6791]
[1753908799195,2.86550095,3771.7,3771.4,3.2078]
[1753908799387,6.16645,3771.5,3771.4,3.8783]
[1753908799691,5.26665,3771.5,3771.4,5.6791]
[1753908800190,5.43358115,3771.5,3771.4,5.6791]
[1753908800797,3.04808115,3771.5,3771.4,5.6791]
[1753908801087,0.53043,3771.7,3771.6,5.6791]
[1753908801393,0.16694026,3771.7,3771.6,5.6791]
[1753908802891,0.53038,3772.1,3772.0,2.2539]
[1753908803090,0.16702611,3772.1,3772.0,5.6791]
[1753908803996,2.69847,3772.8,3772.7,2.2539]
[1753908804198,4.16907,3772.8,3772.7,5.6791]
[1753908804593,5.26647,3772.8,3772.7,5.6791]
[1753908804894,6.16627,3772.8,3772.7,5.6791]
[1753908805098,0.6922,3772.8,3772.7,5.6791]
[1753908805488,3.2656,3772.8,3772.7,5.6791]
[1753908805790,4.7362,3772.8,3772.7,5.6791]
[1753908806903,3.2656,3772.8,3772.7,5.6791]
[1753908807604,3.6388,3773.1,3773.0,2.2539]
[1753908807905,5.0688,3773.4,3773.3,2.2539]
[1753908808104,6.93115184,3773.4,3773.3,3.54535538]
[1753908808301,4.54565184,3773.4,3773.3,5.48015538]
[1753908808499,6.93115184,3773.4,3773.3,5.48015538]
[1753908809799,4.7022,3773.1,3773.0,2.2558]
[1753908810005,6.31415184,3773.1,3773.0,4.5564]
[1753908810203,6.31415184,3773.1,3773.0,5.67]
[1753908810806,6.84438184,3773.1,3773.0,5.67]
[1753908811002,6.31415184,3773.1,3773.0,5.67]
[1753908811202,6.31415184,3773.1,3773.0,3.32]
[1753908811401,6.31415184,3773.1,3772.4,3.6706]
[1753908811402,2.3134,3772.5,3772.4,3.6706]
[1753908811705,6.0796,3771.9,3771.8,1.4148]
[1753908812003,2.3134,3771.1,3771.0,3.1416]
[1753908812302,3.2078,3772.2,3771.4,5.67]
[1753908812501,0.53035,3772.3,3772.1,5.67]
[1753908812700,0.53033,3772.4,3772.3,0.7296]
[1753908812896,0.53033,3772.4,3772.3,5.67]
[1753908813103,2.73549,3772.7,3772.6,3.8268]
[1753908813308,2.73549,3772.7,3771.8,0.53041]
[1753908813309,0.53037,3772.2,3771.8,0.53041]
[1753908813503,5.05978,3772.1,3772.0,1.3206]
[1753908813697,3.6824,3771.9,3771.8,4.2552]
[1753908813902,2.3134,3771.9,3771.8,5.67]
[1753908814308,7.07131,3772.5,3772.4,5.67]
[1753908814607,0.7749362,3772.5,3772.4,6.20033]
[1753908818405,0.67671026,3772.5,3772.4,6.20033]
[1753908818606,0.9366036,3772.8,3772.7,3.4142]
[1753908818807,0.9366036,3772.8,3772.7,8.8778]
[1753908819007,0.9366036,3772.8,3772.7,13.8778]
[1753908819209,0.9366036,3772.9,3772.8,6.20027]
[1753908819407,1.41659267,3773.0,3772.9,2.78605]
[1753908819710,6.96579267,3773.0,3772.9,5.67]
[1753908819902,4.74979267,3773.0,3772.9,5.67]
[1753908820103,1.41659267,3773.1,3773.0,0.53024]
[1753908820305,7.44668403,3773.4,3773.3,0.591]
[1753908820511,7.44668403,3773.4,3773.3,2.941]
[1753908820705,5.5492,3773.4,3773.3,1.5262]
[1753908820909,5.5492,3773.4,3772.6,1.32575]
[1753908820910,4.7022,3772.8,3772.3,3.2078]
[1753908821101,4.7022,3772.8,3771.9,1.4148]
[1753908821102,4.1802,3772.0,3771.9,2.7368]
[1753908821306,3.3332,3772.3,3772.2,1.12135]
[1753908821613,0.94956116,3772.6,3772.5,3.94451]
[1753908822208,4.15736116,3772.7,3772.5,0.53031]
[1753908822515,4.15736116,3772.7,3772.6,3.4142]
[1753908823111,3.2078,3772.7,3772.6,3.4142]
[1753908823413,0.94956116,3772.8,3772.7,3.94448]
[1753908823615,1.96936116,3772.9,3772.7,3.94448]
[1753908823814,1.96936116,3772.9,3772.8,3.4142]
[1753908824211,1.0198,3772.9,3772.8,3.4142]
[1753908824812,1.89903904,3773.0,3772.9,0.53026]
[1753908825014,5.4238,3773.2,3773.1,0.53023]
[1753908825212,5.4238,3773.2,3773.1,2.83083]
[1753908825407,7.32316522,3773.2,3773.1,2.83083]
[1753908825613,0.53023,3773.1,3773.0,1.1136]
[1753908825917,0.53023,3773.1,3772.8,2.3006]
[1753908825918,3.2358,3773.0,3772.8,2.3006]
[1753908826120,5.5492,3773.1,3773.0,4.2552]